Cogmind - Beta 16 @@@ ROGUE MODE // 2025.11.25 @ 22:29:37 Player: UnsuspectingSawblade Result: Destroyed by QT-9G7(p) with EM Pulse Gun Performance ------------- Evolutions (0) 0 Regions Visited (4) 800 Robots Destroyed (16) 80 Value Destroyed (335) 335 Prototype IDs (3) 60 Alien Tech Used (0) 0 Bonus (259) 259 TOTAL SCORE: 1534 Bonus ------- Registered with UFD 300 Friendly Fire -41 Cogmind --------- Core Integrity 0/250 Matter 300/300 Energy 76/100 System Corruption 1% Temperature Warm (116) Movement Walking (190) Ox1 Location -8/Scraptown Parts ------- > --- POWER (1) -------- (None) > --- PROPULSION (2) --- Aluminum Leg > --- UTILITY (2) ------ Medium Storage Unit Seismic Detector > --- WEAPON (2) ------- Riot Gun > --- INVENTORY (10) --- Ion Engine Light Treads Light Treads Aluminum Leg High-capacity Storage Unit Improved Targeting Computer ECM Suite Grenade Launcher Subdweller Shrapnel Launcher Mining Laser Peak State ------------ > --- POWER ------------ Ion Engine > --- PROPULSION ------- Aluminum Leg Makeshift Leg > --- UTILITY ---------- Medium Storage Unit Seismic Detector > --- WEAPON ----------- Riot Gun Subdweller Machine Gun > --- INVENTORY -------- Ion Engine Light Treads Light Treads Wheel High-capacity Storage Unit ECM Suite Medium Laser Grenade Launcher Subdweller Shrapnel Launcher Mining Laser [Rating: 14] Favorites ----------- Power Ion Engine Engine Ion Engine Propulsion Aluminum Leg Treads Light Treads Leg Aluminum Leg Utility Seismic Detector Device Seismic Detector Storage Medium Storage Unit Weapon Medium Laser Energy Gun Medium Laser Ballistic Gun Assault Rifle Launcher Subdweller Shrapnel Launcher Build | -11 -10 -10 -10 -8 ------- Run | Yrd Mat Min Sub Scr Slots Evolved . | . . . . . Power . | . . . . . Propulsion . | . . . . . Utility . | . . . . . Weapon . | . . . . . Parts Attached 16 | 8 4 . 4 . Power 1 | 1 . . . . Engine 1 | 1 . . . . Core . | . . . . . Reactor . | . . . . . Propulsion 5 | 3 1 . 1 . Treads 1 | 1 . . . . Leg 4 | 2 1 . 1 . Wheel . | . . . . . Hover . | . . . . . Flight . | . . . . . Utility 3 | 2 1 . . . Device 1 | 1 . . . . Storage 2 | 1 1 . . . Processor . | . . . . . Hackware . | . . . . . Protection . | . . . . . Artifact . | . . . . . Weapon 7 | 2 2 . 3 . Energy Gun 4 | 2 1 . 1 . Energy Cannon . | . . . . . Ballistic Gun 2 | . 1 . 1 . Ballistic Cannon . | . . . . . Launcher 1 | . . . 1 . Special Weapon . | . . . . . Impact Weapon . | . . . . . Slashing Weapon . | . . . . . Piercing Weapon . | . . . . . Special Melee Weapon . | . . . . . Unidentified Prototypes . | . . . . . Parts Lost 3 | . . . . 3 Power 1 | . . . . 1 Propulsion 1 | . . . . 1 Utility . | . . . . . Weapon 1 | . . . . 1 Highest Loss Streak 3 | . . . . 3 To Critical Strikes . | . . . . . Average Backups 9 | 4 8 10 9 10 Power . | . 1 1 1 1 Propulsion 3 | 2 4 4 3 3 Utility 1 | . 1 2 2 2 Weapon 2 | 1 2 3 3 3 Tool/Special . | . . . . . Unused Backups 9 | . 1 . 2 6 Power 1 | . . . . 1 Propulsion 3 | . . . 2 1 Utility 3 | . . . . 3 Weapon 2 | . 1 . . 1 Tool/Special . | . . . . . Average Slot Usage (%) 99 | . 99 100 99 100 Engine 14 | . 14 14 14 14 Leg 28 | . 28 28 28 28 Device 14 | . 14 14 14 14 Storage 14 | . 14 14 14 14 Energy Gun 17 | . 24 14 14 14 Ballistic Gun 8 | . 3 14 9 14 Launcher 1 | . . . 4 . Peak Build Rating 14 | 7 8 8 14 14 Average Rating 9 | 4 7 8 10 13 On Entrance 7 | . 7 8 8 14 Avg Prop Armor Cover (%) . | . . . . . Naked Turns . | . . . . . Heaviest Build 27 | 14 20 20 27 23 Greatest Support 30 | 20 20 20 30 30 Greatest Overweight (x) 1 | . . . 1 . Average Overweight (x) . | . . . . . Largest Inventory Capacity 10 | 8 10 10 10 10 Average Capacity 9 | 7 9 10 10 10 Most Carried 10 | 8 10 10 10 10 Average Carried 9 | 4 8 10 9 10 Final Capacity 10 | 8 10 10 10 10 Final Carried 10 | 7 10 10 10 10 Class Distribution -------------------- 100% | Mutant Dominant Class ---------------- Mutant | -10/Materials Mutant | -10/Mines Mutant | -10/Subcaves Mutant | -8/Scraptown Resources | -11 -10 -10 -10 -8 ----------- Run | Yrd Mat Min Sub Scr Matter Collected 418 | 280 52 . 83 3 Remotely . | . . . . . Salvage Created 534 | 93 283 . 88 70 Parts 35 | 7 19 . 5 4 Haulers Intercepted 1 | . 1 . . . Recyclers Shooed . | . . . . . Parts Field Recycled . | . . . . . Retrieved Matter . | . . . . . Parts Self-Destructed 7 | . . . 7 . Prevented . | . . . . . Parts Restored . | . . . . . Kills | -11 -10 -10 -10 -8 ------- Run | Yrd Mat Min Sub Scr Combat Hostiles Destroyed 12 | . 6 . 5 1 Guns 7 | . 6 . . 1 AOE 4 | . . . 4 . Classes Destroyed 8 | 2 4 . 1 1 Tunneler 1 | 1 . . . . Hauler 1 | . 1 . . . Recycler 1 | 1 . . . . Watcher 1 | . 1 . . . Swarmer 6 | . 3 . 3 . Grunt 3 | . 3 . . . Subdweller 2 | . . . 2 . Scrapper 1 | . . . . 1 Best Kill Streak 3 | 2 3 . 3 1 Combat Bots Only 3 | . 3 . 3 1 Max Kills in Single Turn 3 | 1 1 . 3 1 Gunslinging . | . . . . . Exploded 3 | . . . 3 . Melee . | . . . . . Uniques/NPCs Destroyed . | . . . . . Combat | -11 -10 -10 -10 -8 -------- Run | Yrd Mat Min Sub Scr Hostile Shots Fired 43 | . 20 . 8 15 Missed 12 | . 8 . 3 1 Hits 31 | . 12 . 5 14 Projectile 31 | . 12 . 5 14 Critical Strikes 1 | . . . . 1 Damage Taken 648 | . 150 . 133 365 Core 250 | . 36 . 42 172 Absorbed by Shields . | . . . . . Core Remaining (%) 100 | 100 . . . . Volleys Fired 37 | 5 25 . 3 4 Largest 2 | 2 2 . 2 1 Hottest 90 | 90 90 . 90 50 Shots Fired 70 | 10 50 . 6 4 Gun 68 | 10 50 . 4 4 Cannon . | . . . . . Launcher 2 | . . . 2 . Special . | . . . . . Kinetic 8 | . 5 . 3 . Thermal 41 | 10 30 . 1 . Explosive . | . . . . . Electromagnetic 21 | . 15 . 2 4 Robot Hit Streak 15 | 4 15 . 5 6 Robot Miss Streak 5 | 2 2 . 1 5 Penetration Max . | . . . . . Secondary Targets . | . . . . . Shots Hit Robots 48 | 6 36 . 5 1 Core Hits 24 | 3 14 . 4 3 Critical Kills . | . . . . . Critical Parts Destroyed . | . . . . . Critical Strikes 4 | . 4 . . . Burn 4 | . 4 . . . Melee Attacks . | . . . . . Impact . | . . . . . Slashing . | . . . . . Piercing . | . . . . . Sneak Attacks . | . . . . . Combat Hostiles . | . . . . . Follow-up Attacks . | . . . . . Damage Inflicted 922 | 70 510 . 310 32 Guns 624 | 70 474 . 48 32 Cannons . | . . . . . Explosions 298 | . 36 . 262 . Melee . | . . . . . Ramming . | . . . . . Kinetic 286 | . 24 . 262 . Thermal 393 | 70 310 . 13 . Explosive . | . . . . . Electromagnetic 243 | . 176 . 35 32 Impact . | . . . . . Slashing . | . . . . . Piercing . | . . . . . Highest Corruption . | . . . . . Average Corruption . | . . . . . Corruption Purged . | . . . . . Corruption Blocked . | . . . . . Overload Shots . | . . . . . Overflow Damage 9 | . . . 9 . Projectiles . | . . . . . Explosions 9 | . . . 9 . Melee . | . . . . . Knockbacks . | . . . . . Impact . | . . . . . Kinetic . | . . . . . Secondary . | . . . . . Self-Inflicted Damage 106 | . 16 . 90 . Shots 3 | . 1 . 2 . Rammed . | . . . . . Targets Rammed . | . . . . . Kicked . | . . . . . Crushed . | . . . . . Highest Temperature 249 | 120 249 . . 104 Average Temperature 67 | 59 69 . . 62 Received Heat Transfer 153 | . 57 . . 96 Effects 3 | . 3 . . . Interference 3 | . 3 . . . Siege Activations . | . . . . . Martial Activations . | . . . . . Shielding Activations . | . . . . . Robots Disrupted . | . . . . . Combat Hostiles . | . . . . . Robots Corrupted . | . . . . . Combat Hostiles . | . . . . . Parts Fried . | . . . . . Impact Corruptions . | . . . . . Robots Melted 1 | . . . 1 . Combat Hostiles 1 | . . . 1 . Parts Melted 3 | . 1 . 2 . Heat Transferred 1359 | 198 1124 . 37 . Parts Sabotaged . | . . . . . Parts Stolen . | . . . . . Parts Stripped . | . . . . . Power Chain Reactions 1 | . 1 . . . Alert | -11 -10 -10 -10 -8 ------- Run | Yrd Mat Min Sub Scr Maximum Alert Level . | . . . . . Low Security (%) 100 | 100 100 100 . . Level 1 . | . . . . . Level 2 . | . . . . . Level 3 . | . . . . . Level 4 . | . . . . . Level 5 . | . . . . . High Security . | . . . . . Max Security . | . . . . . Peak Influence 80 | 10 80 17 . . Initial 17 | . . 17 . . Average 16 | 1 21 5 . . Influence Increases 263 | 10 180 . 73 . Destroy 0b10 Robot/C 180 | . 120 . 60 . Destroy 0b10 Robot/NC 20 | 10 10 . . . Destroy Leader 44 | . 34 . 10 . Allied During Kill 3 | . . . 3 . Successful Hack 11 | . 11 . . . Destroy Structure 5 | . 5 . . . Influence Decreases 263 | 10 135 45 73 . Entered New Map 28 | . . 28 . . Time Decay 215 | 10 135 17 53 . Lost Ally 20 | . . . 20 . Squads Dispatched 1 | . 1 . . . Investigation . | . . . . . Extermination . | . . . . . Reinforcement 1 | . 1 . . . Assault . | . . . . . Garrison . | . . . . . Intercept . | . . . . . Searches Triggered . | . . . . . Construction Impeded . | . . . . . Haulers Reinforced . | . . . . . Active Scanning Responses . | . . . . . Cargo Convoy Interrupts . | . . . . . Stealth | -11 -10 -10 -10 -8 --------- Run | Yrd Mat Min Sub Scr Distress Signals 2 | . 2 . . . Communications Jammed . | . . . . . Distress Signals . | . . . . . Times Spotted 24 | . 13 . 5 6 Peak Tracking Total 7 | . 3 . 3 7 Tactical Retreats . | . . . . . Traps | -11 -10 -10 -10 -8 ------- Run | Yrd Mat Min Sub Scr Traps Triggered . | . . . . . Indirectly . | . . . . . Trap Hack Attempts . | . . . . . Triggered . | . . . . . Disarmed . | . . . . . Reprogrammed . | . . . . . Reused . | . . . . . Traps Extracted . | . . . . . Installed . | . . . . . Triggered . | . . . . . Machines | -11 -10 -10 -10 -8 ---------- Run | Yrd Mat Min Sub Scr Machines Disabled . | . . . . . Max in Single Turn . | . . . . . Machines Repaired . | . . . . . Machines Dismantled . | . . . . . Machines Sabotaged . | . . . . . Overloaded Fab Kills . | . . . . . Hacking | -11 -10 -10 -10 -8 --------- Run | Yrd Mat Min Sub Scr Machines Accessed 5 | . 4 . . 1 Terminals 4 | . 4 . . . Fabricators . | . . . . . Repair Stations . | . . . . . Recycling Units . | . . . . . Scanalyzers . | . . . . . Garrison Access . | . . . . . Total Hacks 13 | . 12 . . 1 Successful 4 | . 3 . . 1 Failed 9 | . 9 . . . Catastrophic 2 | . 2 . . . Database Lockouts . | . . . . . Manual 8 | . 8 . . . Terminals 12 | . 12 . . . Fabricators . | . . . . . Repair Stations . | . . . . . Recycling Units . | . . . . . Scanalyzers . | . . . . . Garrison Access . | . . . . . Terminal Hacks 4 | . 3 . . 1 Record 1 | . . . . 1 Robot Analysis 1 | . 1 . . . Prototype ID Bank 1 | . 1 . . . Locate Traps 1 | . 1 . . . Fabricator Hacks . | . . . . . Repair Station Hacks . | . . . . . Recycling Unit Hacks . | . . . . . Scanalyzer . | . . . . . Garrison Access Hacks . | . . . . . Unauthorized Hacks . | . . . . . Terminals . | . . . . . Fabricators . | . . . . . Repair Stations . | . . . . . Recycling Units . | . . . . . Scanalyzers . | . . . . . Garrison Access . | . . . . . Data Cores Recovered . | . . . . . Used . | . . . . . Hacking Detections 4 | . 4 . . . Full Trace Events 1 | . 1 . . . Feedback Events . | . . . . . Feedback Blocked . | . . . . . Robot Schematics Acquired . | . . . . . Robots Built . | . . . . . Authchips . | . . . . . Time . | . . . . . Total Robot Build Rating . | . . . . . Part Schematics Acquired . | . . . . . Parts Built . | . . . . . Authchips . | . . . . . Time . | . . . . . Total Part Build Rating . | . . . . . Part Studies Acquired . | . . . . . Parts Repaired . | . . . . . Time . | . . . . . Parts Recycled . | . . . . . Recycled Matter . | . . . . . Retrieved Matter . | . . . . . Retrieved Components . | . . . . . Parts Scanalyzed . | . . . . . Part Schematics Acquired . | . . . . . Parts Damaged . | . . . . . Bothacking | -11 -10 -10 -10 -8 ------------ Run | Yrd Mat Min Sub Scr Used RIF Installer . | . . . . . Robots Hacked . | . . . . . Non-combat . | . . . . . Combat . | . . . . . Robot Hacks Applied . | . . . . . Relay Couplers Released . | . . . . . Fabnet Peak Effective % . | . . . . . Robots Rewired . | . . . . . Allies Hacked . | . . . . . Hacks Repelled . | . . . . . Allies | -11 -10 -10 -10 -8 -------- Run | Yrd Mat Min Sub Scr Total Allies 2 | . . 2 . . Largest Group 2 | . . 2 2 . Highest-Rated Group 45 | . . 45 45 . Highest-Rated Ally 31 | . . 31 31 . Total Orders . | . . . . . Ally Attacks 10 | . . . 10 . Total Damage 167 | . . . 167 . Kills . | . . . . . Allies Corrupted . | . . . . . Allies Melted . | . . . . . Intel | -11 -10 -10 -10 -8 ------- Run | Yrd Mat Min Sub Scr Active Infowar (turns) 1310 | 16 424 80 530 260 Seismic 1310 | 16 424 80 530 260 Robot Analysis Total 1 | . 1 . . . Derelict Logs Recovered 1 | . . 1 . . Drone Launches . | . . . . . Drone Recoveries . | . . . . . Exploration | -11 -10 -10 -10 -8 ------------- Run | Yrd Mat Min Sub Scr Turns Passed 1424 | 91 463 80 530 260 Spaces Moved 943 | 51 303 67 329 193 Core 7 | 7 . . . . Treads 1 | 1 . . . . Legs 935 | 43 303 67 329 193 Wheels . | . . . . . Hover . | . . . . . Flight . | . . . . . Fastest Speed 50 | 50 120 120 120 130 Average Speed 133 | 111 120 120 153 130 Slowest Speed 190 | 160 120 120 190 130 Overloaded Moves . | . . . . . Propulsion Burnouts . | . . . . . Robots Hopped . | . . . . . Potential Cave-ins . | . . . . . Cave-ins Triggered . | . . . . . Exploration Rate (%) 23 | 4 48 18 25 24 Regions Visited 4 Branch Regions 3 Pre-discovered Areas 1 | . . 1 . . Known Exits Taken . | . . . . . Unknown Exits Taken 4 | 1 1 1 1 . Scrap Searched 3 | . . . 1 2 Spaces Dug . | . . . . . Terrain Destroyed 32 | . 4 . 28 . Melee . | . . . . . Projectile . | . . . . . AOE 32 | . 4 . 28 . Terrain Rammed . | . . . . . Walls Destroyed . | . . . . . Machines Disabled . | . . . . . Actions | -11 -10 -10 -10 -8 --------- Run | Yrd Mat Min Sub Scr Total 1042 | 73 353 66 351 199 Wait 21 | 1 14 . 6 . Move 939 | 50 302 66 328 193 Hop . | . . . . . Pick Up 17 | 8 4 . 4 1 Fast Attach 8 | 6 1 . 1 . Attach 3 | 2 . . 1 . Detach 1 | 1 . . . . Swap 5 | . 3 . 2 . Drop 11 | . 4 . 6 1 Fire 37 | 5 25 . 3 4 Melee . | . . . . . Ram . | . . . . . Kick . | . . . . . Crush . | . . . . . Escape Stasis . | . . . . . Rewire . | . . . . . Trap . | . . . . . Miscellaneous . | . . . . . Route ------- -11/Scrapyard -10/Materials (discovered 2 exits: [*Min x2]) -10/Mines -10/Subcaves -8/Scraptown History --------- Turn | Location | Event 2 | -11/Scrapyard | Met Revision 17 4 | -11/Scrapyard | Discovered new exit (range 14) 92 | -11/Scrapyard | Entered Materials 163 | -10/Materials | Discovered new exit (range 6) 263 | -10/Materials | Discovered new exit (range 16) 318 | -10/Materials | Build established: Mutant 555 | -10/Materials | Entered Mines 602 | -10/Mines | Learned location of Zion (-6) 626 | -10/Mines | Discovered new exit (range 7) 635 | -10/Mines | Entered Subcaves 635 | -10/Subcaves | Accompanied by 2 allies 636 | -10/Subcaves | Approached by a straggling Scientist 640 | -10/Subcaves | Led the pair of lost Derelicts to an unsafe place 781 | -10/Subcaves | Shifting Twisted Machinery released Riot Gun 1158 | -10/Subcaves | Scientist uncovered a shortcut to Scraptown 1165 | -10/Subcaves | Entered Scraptown 1190 | -8/Scraptown | Heard Great Nut preacher, LISTEN AND RECITE! 1400 | -8/Scraptown | Visited UFD Registry 1404 | -8/Scraptown | Registered with UFD as "Flashskull" 1419 | -8/Scraptown | Attacked by Scraptown defenders 1424 | -8/Scraptown | Core integrity fell below 50% 1425 | -8/Scraptown | Core integrity fell below 20% 1425 | -8/Scraptown | Destroyed by QT-9G7(p) with EM Pulse Gun Last Messages --------------- is! You think I wanted to be called Nanobearings? Welcome, Flashskull! 01404_ ANNOUNCEMENT: Welcome to our newest member, Flashskull! Open the gate! 01419_ ANNOUNCEMENT: Intruder alert! Defend Scraptown! 01420_ Triborg activates siege mode. 01420_ PY-US0(j) destroyed. 01420_ Siege Slug penetrates Wall. 01422_ Penetrated by Siege Slug. 01422_ Ion Engine destroyed. 01422_ Mak. Leg destroyed. 01422_ Critical hit (Blast). 01422_ Knocked back. 01422_ Penetrated by Siege Slug. 01422_ Siege Slug penetrates Reinforced Barrier. 01424_ Penetrated by Siege Slug. 01424_ Knocked back. 01425_ Sub. Machine Gun destroyed. Map ----- +----------------------------------------------------+ | ?????????????????????????????????????????????????? | | ?????????????????????????????????????????????????? | | ?????????????????????????????????????????????????? | | ?????????????????????????????????????????????????? | | ?????????????????????????????????????????????????? | | ?????????????????????????????????????????????????? | | ?????????????????????????????????????????????????? | | ?????????????????????????????????????????????????? | | ?????????????????????????????????????????????????? | | ?????????????????????????????????????????????????? | | ?????????????????????? ????????????????????????? | | ?????????????????????? ????????????????????????? | | ??????????????????????g ????????????????????????? | | ??????????????#########p;###?????????????????????? | | ?????????????? #?????????????????????? | | ????????????? #?????????????????????? | | ????????????? #?????????????????????? | | ??????????????? #?????????????????????? | | ???????????????? #?????????????????????? | | ?????????????????# #?????????????????????? | | ????????????? ??# #?????????????????????? | | ?????????????< # #?????????????????????? | | ?????????????<< # #?????????????????????? | | ?????????????<< #?????????????????????? | | ?????????????????# j #?????????????????????? | | ?????????????????# @%###???????????????????? | | ?????????????????# %=""#"#?????????????????? | | ????????????????# =%""""#?????????????????? | | #???????????????# *!""###?????????????????? | | #???????????????# ###???????????????????? | | #???????????????# #########" ????????? | | #???????????????# ????????? | | #???????????????# ????????? | | #???????????????# ????????? | | #???????????????# ????????? | | ################# TT ????????? | | TT """ ?????????? | | j ""??? ??????????? | | "?????????????????? | | ?????????????????? | | ?????????????????? | | #"?????????????????? | | #??????????????????? | | #??????????????????? | | ##### ############## ### ####??????????????????? | | ??? "?????????? # #?????????????????????? | | ?" " """#???????# ||| # #?????????????????????? | | " " "#???????#"""" # #?????????????????????? | | " ""#???????# ||| # #?????????????????????? | | " "#???????#"""" # #?????????????????????? | +----------------------------------------------------+ Best States ------------- Heat Dissipation 25 Energy Generation 10 Energy Capacity 250 Matter Stores 300 Matter Capacity 300 Sight Range 16 Terrain Scan Density 10 Evasion (%) 55 Item Schematics ----------------- None Robot Schematics ------------------ None Fabricated ------------ Nothing Repaired ---------- Nothing Studied --------- None Alien Tech Used ----------------- None Achievements -------------- Nice Directions, Buddy Challenges ------------ None Game ------ Seed SpikedActuatorDesublimator Manual? 0 Play Time 00:10:39 Cumulative 15.5 hours Start 2025.11.24 @ 13:35:20 End 2025.11.25 @ 22:29:37 Sessions 3 Manual Loads 0 Difficulty Rogue Special Mode None Game No. 43 Rogue 43 Adventurer 0 Explorer 0 Win Type - Total 0 Types 0/0/0/0/0/0/0/0/0/0 Lore% 21 Gallery% 19 Achievement% 19 Wizard Run 0 Options --------- Layout 1 ASCII 0 Keyboard 0 Movement Numpad Keybinds 0 Fullscreen 1 Font 24/Smallcaps Map View 50x35 Zoom Use 0% Tactical HUD 1 Map Filters NONE Filters NONE Steam 1 RUN: 69abbbd3-61ab-4dce-8899-a1842a791354